fUST/lending_fUST_20250903
["ID","MTS","AMOUNT","RATE_DAILY","PERIOD"]
[383193479,1756877400716,-480.0,0.00013972,2]
[383193481,1756877400748,-480.0,0.00013972,2]
[383193483,1756877400780,-183.0,0.00013972,2]
[383193486,1756877400811,-213.11,0.00013972,2]
[383193488,1756877400855,-480.0,0.00013972,2]
[383193491,1756877400886,-381.04,0.00013972,2]
[383193493,1756877400916,-480.0,0.00013972,2]
[383193495,1756877400946,-480.0,0.00013972,2]
[383193497,1756877400976,-213.44,0.00013972,2]
[383193499,1756877401011,-480.0,0.00013972,2]
[383193502,1756877401042,-368.32,0.00013972,2]
[383193504,1756877401073,-601.45,0.00013972,2]
[383193506,1756877401104,-480.0,0.00013972,2]
[383193508,1756877401137,-480.0,0.00013972,2]
[383193511,1756877401170,-461.79414614,0.00013972,2]
[383193512,1756877401183,-187.92170772,0.00013972,2]
[383193513,1756877401193,-312.07829228,0.00013972,2]
[383193515,1756877401205,-167.92170772,0.00013972,2]
[383193516,1756877401214,-332.07829228,0.00013972,2]
[383193518,1756877401226,-147.92170772,0.00013972,2]
[383193519,1756877401236,-352.07829228,0.00013972,2]
[383193522,1756877401277,-314.03170772,0.00013972,2]
[383193523,1756877401287,-185.96829228,0.00013972,2]
[383193524,1756877401299,-294.03170772,0.00013972,2]
[383193526,1756877401308,-205.96829228,0.00013972,2]
[383193528,1756877401348,-293.6594684,0.00013972,2]
[383193531,1756877401379,-240.19,0.00013972,2]
[383193533,1756877401410,-480.0,0.00013972,2]
[383193535,1756877401443,-480.0,0.00013972,2]
[383193537,1756877401474,-480.0,0.00013972,2]
[383193539,1756877401504,-480.0,0.00013972,2]
[383193542,1756877401538,-480.0,0.00013972,2]
[383193544,1756877401569,-480.0,0.00013972,2]
[383193546,1756877401601,-1107.82,0.00013972,2]
[383193548,1756877401632,-271.37990241,0.00013972,2]
[383193550,1756877401651,-280.00087826,0.00013972,2]
[383193551,1756877401663,-450.0,0.00013972,2]
[383193554,1756877401701,-850.46912174,0.00013972,2]
[383193556,1756877401732,-480.0,0.00013972,2]
[383193558,1756877401762,-632.35,0.00013972,2]
[383193560,1756877401793,-480.0,0.00013972,2]
[383193562,1756877401824,-480.0,0.00013972,2]
[383193564,1756877401855,-480.0,0.00013972,2]
[383193567,1756877401886,-480.0,0.00013972,2]
[383193569,1756877401917,-574.195952,0.00013972,2]
[383193571,1756877401936,-422.84531423,0.00013972,2]
[383193572,1756877401947,-153.60196,0.00013972,2]
[383193573,1756877401958,-151.0,0.00013972,2]
[383193575,1756877401970,-500.0,0.00013972,2]
[383193577,1756877402008,-129.45272577,0.00013972,2]
[383193579,1756877402038,-480.0,0.00013972,2]
[383193582,1756877402069,-480.0,0.00013972,2]
[383193584,1756877402099,-480.0,0.00013972,2]
[383193586,1756877402130,-633.65,0.00013972,2]
[383193588,1756877402161,-596.98,0.00013972,2]
[383193590,1756877402195,-480.0,0.00013972,2]
[383193593,1756877402226,-480.0,0.00013972,2]
[383193595,1756877402257,-167.19,0.00013972,2]
[383193597,1756877402291,-804.98,0.00013972,2]
[383193599,1756877402327,-55.50454846,0.00013972,2]
[383193601,1756877402341,-424.49545154,0.00013972,2]
[383193603,1756877402473,-75.50454846,0.00013972,2]
[383193604,1756877402486,-151.0,0.00013972,2]
[383193605,1756877402505,-253.49545154,0.00013972,2]
[383193606,1756877402514,-480.0,0.00013972,2]
[383193607,1756877402530,-936.93454846,0.00013972,2]
[383193608,1756877402542,-235.72545154,0.00013972,2]
[383193609,1756877402551,-294.1,0.00013972,2]
[383193610,1756877402560,-480.0,0.00013972,2]
[383193611,1756877402568,-211.72,0.00013972,2]
[383193612,1756877402578,-448.88454846,0.00013972,2]
[383193613,1756877402612,-31.11545154,0.00013972,2]
[383193614,1756877402644,-480.0,0.00013972,2]
[383193616,1756877402677,-528.28,0.00013972,2]
[383193618,1756877402709,-480.0,0.00013972,2]
[383193621,1756877402740,-480.0,0.00013972,2]
[383193623,1756877402771,-480.0,0.00013972,2]
[383193625,1756877402806,-480.0,0.00013972,2]
[383193627,1756877402839,-1474.97,0.00013972,2]
[383193630,1756877402869,-480.0,0.00013972,2]
[383193631,1756877402889,-480.0,0.00013972,2]
[383193750,1756877411085,-2643.2642584,0.00013598,2]
[383193754,1756877415164,248.64,0.00012329,2]
[383193755,1756877418765,-10000.01,0.00013598,2]
[383193756,1756877418892,-10000.01,0.00013598,2]
[383193757,1756877419050,-10000.01,0.00013598,2]
[383193758,1756877419177,-10000.01,0.00013598,2]
[383193759,1756877419332,-10000.01,0.00013598,2]
[383193760,1756877419472,-10000.01,0.00013598,2]
[383193761,1756877419644,-10000.01,0.00013598,2]
[383193762,1756877419915,-10000.01,0.00013598,2]
[383193763,1756877420042,-10000.01,0.00013598,2]
[383193764,1756877420198,-10000.01,0.00013598,2]
[383193765,1756877428760,-10000.01,0.00013462,2]
[383193766,1756877428933,-10000.01,0.00013462,2]
[383193767,1756877429030,-10000.01,0.00013462,2]
[383193768,1756877429142,-10000.01,0.00013462,2]
[383193769,1756877429336,-10000.01,0.00013462,2]
[383193770,1756877429494,-10000.01,0.00013462,2]
[383193771,1756877429662,-10000.01,0.00013462,2]
[383193772,1756877429840,-10000.01,0.00013462,2]
[383193773,1756877430073,-10000.01,0.00013462,2]
[383193774,1756877430215,-10000.01,0.00013462,2]
[383193796,1756877431943,-1533.60438604,0.00013462,2]
[383193797,1756877431953,-1533.60438604,0.00013598,2]
[383193798,1756877431962,-480.0,0.00013698,2]
[383193799,1756877431971,-1448.76,0.00013698,2]
[383193800,1756877431981,-376.0310105,0.00013698,2]
[383193801,1756877431990,-480.0,0.00013698,2]
[383193802,1756877432001,-520.32499984,0.00013732,2]
[383193803,1756877432011,-1577.61055253,0.00013832,2]
[383193804,1756877432020,-300.0,0.0001397,2]
[383193805,1756877432030,-1577.61055253,0.00013972,2]
[383193806,1756877432039,-480.0,0.00013972,2]
[383193807,1756877432048,-810.45958959,0.00013972,2]
[383193808,1756877432061,-536.63448482,0.00013972,2]
[383193809,1756877435803,-101.66592559,0.00013972,2]
[383193810,1756877435836,-480.0,0.00013972,2]
[383193811,1756877435870,-1051.74036835,0.00013972,2]
[383193812,1756877435904,-520.32499982,0.00013973,2]
[383193813,1756877436862,701.16024557,0.00013973,2]
[383193823,1756877437781,467.44016371,0.00013973,2]
[383193824,1756877437990,-157.52,0.00014057,2]
[383193825,1756877438000,-500.0,0.00014118,2]
[383193826,1756877438010,-1670.43,0.00014148,2]
[383193827,1756877438019,-409.0,0.00014159,2]
[383193828,1756877438029,-520.32499982,0.00014213,2]
[383193829,1756877438038,-160.0,0.00014233,2]
[383193830,1756877438048,-417.15472785,0.00014233,2]
[383193831,1756877438058,-846.3157213,0.00014233,2]
[383193832,1756877438068,-160.0,0.00014233,2]
[383193833,1756877438078,-500.0,0.00014242,2]
[383193834,1756877438088,-500.0,0.00014245,2]
[383193835,1756877438098,-1670.43,0.00014245,2]
[383193836,1756877438108,-1670.43,0.00014245,2]
[383193837,1756877438117,-202.78072841,0.00014246,2]
[383193838,1756877438127,-480.0,0.00014246,2]
[383193839,1756877438136,-480.0,0.00014246,2]
[383193840,1756877438146,-480.0,0.00014246,2]
[383193841,1756877438156,-480.0,0.00014246,2]
[383193842,1756877438165,-480.0,0.00014246,2]
[383193843,1756877438174,-480.0,0.00014246,2]
[383193844,1756877438186,-483.72,0.00014246,2]
[383193845,1756877438198,-480.0,0.00014246,2]
[383193846,1756877438207,-480.0,0.00014246,2]
[383193847,1756877438217,-480.0,0.00014246,2]
[383193848,1756877438226,-480.0,0.00014246,2]
[383193849,1756877438236,-480.0,0.00014246,2]
[383193850,1756877438245,-193.08,0.00014246,2]
[383193851,1756877438254,-218.96,0.00014246,2]
[383193852,1756877438263,-257.71,0.00014246,2]
[383193853,1756877438273,-480.0,0.00014246,2]
[383193854,1756877438282,-1107.82,0.00014246,2]
[383193855,1756877438291,-480.0,0.00014246,2]
[383193856,1756877438301,-632.35,0.00014246,2]
[383193857,1756877438311,-480.0,0.00014246,2]
[383193858,1756877438320,-480.0,0.00014246,2]
[383193859,1756877438330,-480.0,0.00014246,2]
[383193860,1756877438339,-240.19,0.00014246,2]
[383193861,1756877438349,-1356.9,0.00014246,2]
[383193862,1756877438358,-480.0,0.00014246,2]
[383193863,1756877438367,-480.0,0.00014246,2]
[383193864,1756877438377,-480.0,0.00014246,2]
[383193865,1756877438386,-633.65,0.00014246,2]
[383193866,1756877438395,-596.98,0.00014246,2]
[383193867,1756877438405,-200.45,0.00014246,2]
[383193868,1756877438414,-286.07525985,0.00014246,2]
[383193869,1756877438423,-804.98,0.00014246,2]
[383193870,1756877438433,-480.0,0.00014246,2]
[383193871,1756877438443,-480.0,0.00014246,2]
[383193872,1756877438453,-480.0,0.00014246,2]
[383193873,1756877438463,-1172.66,0.00014246,2]
[383193874,1756877438472,-336.57,0.00014246,2]
[383193875,1756877438481,-480.0,0.00014246,2]
[383193876,1756877438491,-480.0,0.00014246,2]
[383193877,1756877438500,-528.28,0.00014246,2]
[383193878,1756877438509,-480.0,0.00014246,2]
[383193879,1756877438518,-480.0,0.00014246,2]
[383193880,1756877438528,-480.0,0.00014246,2]
[383193881,1756877438537,-1474.97,0.00014246,2]
[383193882,1756877438546,-480.0,0.00014246,2]
[383193883,1756877438555,-480.0,0.00014246,2]
[383193884,1756877438565,-480.0,0.00014246,2]
[383193885,1756877438575,-1448.76,0.00014246,2]
[383193886,1756877438584,-480.0,0.00014246,2]
[383193887,1756877438594,-600.0,0.00014249,2]
[383193888,1756877438603,-360.11273754,0.00014249,2]
[383193889,1756877438614,-300.0,0.0001425,2]
[383193890,1756877438625,-300.0,0.0001425,2]
[383193891,1756877438635,-300.0,0.0001425,2]
[383193892,1756877438644,-300.0,0.0001425,2]
[383193893,1756877438654,-300.0,0.0001425,2]
[383193894,1756877438663,-300.0,0.0001425,2]
[383193895,1756877438672,-300.0,0.0001425,2]
[383193896,1756877438682,-300.0,0.0001425,2]
[383193897,1756877438691,-300.0,0.0001425,2]
[383193898,1756877438700,-300.0,0.0001425,2]
[383193899,1756877438710,-300.0,0.0001425,2]
[383193900,1756877438719,-300.0,0.0001425,2]
[383193901,1756877438729,-300.0,0.0001425,2]
[383193902,1756877438739,-300.0,0.0001425,2]
[383193903,1756877438748,-300.0,0.0001425,2]
[383193904,1756877438757,-209.7,0.00014268,2]
[383193905,1756877438767,-501.02027946,0.00014291,2]
[383193906,1756877438776,-223.61971516,0.00014291,2]
[383193907,1756877438785,-503.34848619,0.00014291,2]
[383193908,1756877438795,-500.75680634,0.00014327,2]
[383193909,1756877438804,-502.27672419,0.00014327,2]
[383193910,1756877438814,-500.0,0.00014327,2]
[383193911,1756877438824,-501.28954929,0.00014413,2]
[383193912,1756877438834,-500.0,0.00014413,2]
[383193913,1756877438843,-500.0,0.0001442,2]
[383193914,1756877438853,-272.32259811,0.00014433,2]
[383193915,1756877438863,-424.45571783,0.00014433,2]
[383193916,1756877438873,-1021.10315671,0.00014441,2]
[383193917,1756877438886,-649.32684329,0.00014441,2]
[383193918,1756877438896,-555.75496,0.00014452,2]
[383193919,1756877438905,-352.42112006,0.00014452,2]
[383193920,1756877438915,-520.32499982,0.00014454,2]
[383193921,1756877438925,-509.83426328,0.00014454,2]
[383193922,1756877438934,-503.00747837,0.00014455,2]
[383193923,1756877438943,-500.0,0.00014463,2]
[383193924,1756877438952,-500.0,0.00014463,2]
[383193925,1756877438962,-503.35917618,0.00014463,2]
[383193926,1756877438972,-502.67980249,0.00014463,2]
[383193927,1756877438981,-168.0,0.00014492,2]
[383193928,1756877438991,-1670.43,0.00014519,2]
[383193929,1756877439000,-775.99836093,0.0001452,2]
[383193930,1756877439011,-2531.58424737,0.0001452,2]
[383193931,1756877439024,-67.73608747,0.0001452,2]
[383193932,1756877439034,-323.24292373,0.0001452,2]
[383193977,1756877440054,-519.48394604,0.00014245,2]
[383194313,1756877443528,480.0,0.00013698,2]
[383194338,1756877443766,-89.70605396,0.00014245,2]
[383194342,1756877443796,-160.47707627,0.00014245,2]
[383194347,1756877443826,-311.62677581,0.00014246,2]
[383194357,1756877443916,480.0,0.00013972,2]
[383194391,1756877444240,480.0,0.00014246,2]
[383194501,1756877445540,553.3,0.00013698,2]
[383194527,1756877445784,553.3,0.00013972,2]
[383194553,1756877446050,-154.92,0.0001452,2]
[383194555,1756877446061,-480.0,0.0001452,2]
[383194557,1756877446071,-480.0,0.0001452,2]
[383194559,1756877446080,-189.38601483,0.0001452,2]
[383194567,1756877446150,553.3,0.00014246,2]
[383194580,1756877446278,-290.61398517,0.0001452,2]
[383194583,1756877446288,-480.0,0.0001452,2]
[383194584,1756877446297,-345.10023324,0.0001452,2]
[383195090,1756877451422,480.0,0.00013698,2]
[383195099,1756877451681,480.0,0.00013972,2]
[383195126,1756877451932,480.0,0.00014246,2]
[383195343,1756877454409,-4291.50959072,0.00014375,2]
[383195349,1756877454456,-10000.01,0.00014375,2]
[383195361,1756877454574,480.0,0.00013698,2]
[383195370,1756877454662,-3918.74864009,0.00014375,2]
[383195375,1756877454697,-1682.51271982,0.00014375,2]
[383195387,1756877454808,-480.0,0.00014375,2]
[383195393,1756877454856,226.65116933,0.00013972,2]
[383195533,1756877456138,637.11639357,0.00013971,2]
[383195587,1756877459333,480.0,0.00013698,2]
[383195588,1756877460737,242.9,0.00013972,2]
[383195590,1756877463813,-134.89976676,0.0001452,2]
[383195591,1756877463848,-480.0,0.0001452,2]
[383195592,1756877463882,-480.0,0.0001452,2]
[383195593,1756877463918,-1107.82,0.0001452,2]
[383195594,1756877463949,-480.0,0.0001452,2]
[383195595,1756877463981,-480.0,0.0001452,2]
[383195596,1756877464015,-388.09,0.0001452,2]
[383195597,1756877464049,-480.0,0.0001452,2]
[383195598,1756877464083,-581.49046648,0.0001452,2]
[383195599,1756877464293,-775.40953352,0.0001452,2]
[383195600,1756877464327,-480.0,0.0001452,2]
[383195601,1756877464361,-480.0,0.0001452,2]
[383195602,1756877464395,-633.65,0.0001452,2]
[383195603,1756877464427,-596.98,0.0001452,2]
[383195604,1756877464461,-804.98,0.0001452,2]
[383195605,1756877464494,-480.0,0.0001452,2]
[383195606,1756877464527,-480.0,0.0001452,2]
[383195607,1756877464559,-242.74093296,0.0001452,2]
[383195608,1756877464715,-52.48906704,0.0001452,2]
[383195611,1756877464749,-1172.66,0.0001452,2]
[383195614,1756877464781,-480.0,0.0001452,2]
[383195615,1756877464814,-152.75,0.0001452,2]
[383195616,1756877464847,-528.28,0.0001452,2]
[383195617,1756877464879,-480.0,0.0001452,2]
[383195618,1756877464913,-480.0,0.0001452,2]
[383195619,1756877465153,-480.0,0.0001452,2]
[383195620,1756877465188,-872.68186592,0.0001452,2]
[383195621,1756877465276,-602.28813408,0.0001452,2]
[383195622,1756877465310,-395.76,0.0001452,2]
[383195623,1756877465344,-480.0,0.0001452,2]
[383195624,1756877465377,-480.0,0.0001452,2]
[383195625,1756877465540,-1448.76,0.0001452,2]
[383195626,1756877465573,-480.0,0.0001452,2]
[383195627,1756877465607,-207.75118387,0.0001452,2]
[383195628,1756877465642,-480.0,0.0001452,2]
[383195629,1756877465675,-297.5913641,0.0001452,2]
[383195630,1756877465882,-255.7086359,0.0001452,2]
[383195631,1756877465915,-480.0,0.0001452,2]
[383195632,1756877466142,286.39475322,0.00014519,2]
[383195633,1756877466910,151.0,0.0001452,2]
[383195634,1756877467562,480.0,0.00013698,2]
[383195635,1756877467723,264.50236775,0.0001452,2]
[383195636,1756877467844,299.16094223,0.00013972,2]
[383195637,1756877470202,530.32150586,0.00013938,2]
[383195638,1756877470647,232.90165665,0.00013938,2]
[383195639,1756877473835,-1670.43,0.00014546,2]
[383195640,1756877474101,500.0,0.00014245,2]
[383195641,1756877474138,176.76183005,0.00014245,2]
[383195642,1756877474174,436.56232349,0.00014245,2]
[383195643,1756877474221,506.08263083,0.00014245,2]
[383195644,1756877474811,217.50314573,0.00013938,2]
[383195645,1756877475699,411.79546095,0.00014245,2]
[383195646,1756877476601,670.81,0.00013698,2]
[383195647,1756877476846,670.81,0.00013972,2]
[383195648,1756877477108,670.81,0.00014246,2]
[383195649,1756877477387,670.81,0.0001452,2]
[383195650,1756877478268,1670.43,0.00014546,2]
[383195651,1756877483860,-1670.43,0.00014693,2]
[383195652,1756877483892,-916.27610558,0.00014694,2]
[383195653,1756877483923,-520.32499982,0.00014694,2]
[383195654,1756877485798,480.0,0.00013698,2]
[383195655,1756877486246,480.0,0.00013972,2]
[383195656,1756877486800,480.0,0.00014246,2]
[383195657,1756877487075,480.0,0.0001452,2]
[383195658,1756877488516,500.0,0.00014519,2]
[383195659,1756877488565,301.96918403,0.00014519,2]
[383195660,1756877490568,480.0,0.00013698,2]
[383195661,1756877491294,480.0,0.00013972,2]
[383195663,1756877491645,103.97860517,0.00014246,2]
[383195664,1756877491676,376.02139483,0.00014246,2]
[383195665,1756877492235,480.0,0.0001452,2]
[383195666,1756877492639,409.0,0.00014291,2]
[383195667,1756877493783,168.0,0.00014618,2]
[383195668,1756877493867,-168.0,0.00014766,2]
[383195669,1756877502018,5000.0,0.00014781,2]
[383195670,1756877503899,-1670.43,0.00014793,2]
[383195671,1756877503931,-480.0,0.00014794,2]
[383195672,1756877503964,-480.0,0.00014794,2]
[383195673,1756877504134,-480.0,0.00014794,2]
[383195674,1756877504168,-328.45,0.00014794,2]
[383195675,1756877504199,-480.0,0.00014794,2]
[383195676,1756877504232,-535.41,0.00014794,2]
[383195677,1756877504395,-1107.82,0.00014794,2]
[383195678,1756877504428,-476.95944139,0.00014794,2]
[383195679,1756877504461,-1356.9,0.00014794,2]
[383195680,1756877504493,-480.0,0.00014794,2]
[383195681,1756877504524,-625.12,0.00014794,2]
[383195682,1756877504556,-633.65,0.00014794,2]
[383195683,1756877504589,-159.11111722,0.00014794,2]
[383195684,1756877504640,-320.88888278,0.00014794,2]
[383195685,1756877504675,-433.88723993,0.00014794,2]
[383195686,1756877504710,-1172.66,0.00014794,2]
[383195687,1756877504743,-480.0,0.00014794,2]
[383195688,1756877504782,-528.28,0.00014794,2]
[383195689,1756877504820,-480.0,0.00014794,2]
[383195690,1756877504858,-480.0,0.00014794,2]
[383195691,1756877504890,-480.0,0.00014794,2]
[383195692,1756877505095,-1474.97,0.00014794,2]
[383195693,1756877505127,-480.0,0.00014794,2]
[383195694,1756877505159,-480.0,0.00014794,2]
[383195695,1756877505194,-1448.76,0.00014794,2]
[383195696,1756877505228,-208.7,0.00014794,2]
[383195697,1756877505263,-480.0,0.00014794,2]
[383195698,1756877505298,-301.85,0.00014794,2]
[383195699,1756877505408,-251.45,0.00014794,2]
[383195700,1756877505442,-218.87732788,0.00014794,2]
[383195701,1756877505478,-670.81,0.00014794,2]
[383195702,1756877505513,-480.0,0.00014794,2]
[383195703,1756877505547,-480.0,0.00014794,2]
[383195704,1756877507875,480.0,0.00013698,2]
[383195705,1756877508260,480.0,0.00013972,2]
[383195706,1756877508512,236.30124969,0.00014246,2]
[383195707,1756877513895,-168.0,0.00014858,2]
[383195708,1756877514231,489.064364,0.00025,30]
[383195709,1756877515886,489.064364,0.00013971,2]
[383195710,1756877517618,5000.0,0.00014873,2]
[383195711,1756877520504,480.0,0.00013698,2]
[383195712,1756877520767,480.0,0.00013972,2]
[383195713,1756877521016,480.0,0.00014246,2]
[383195714,1756877521307,480.0,0.0001452,2]
[383195715,1756877521664,480.0,0.00014794,2]
[383195716,1756877523937,-1000.0,0.00014875,2]
[383195717,1756877526078,5000.0,0.00014873,2]
[383195718,1756877526665,1074.21,0.00013698,2]
[383195720,1756877527065,1074.21,0.00013972,2]
[383195721,1756877527483,851.59,0.00014246,2]
[383195722,1756877527512,222.62,0.00014246,2]
[383195723,1756877527859,1074.21,0.0001452,2]
[383195724,1756877528190,1074.21,0.00014794,2]
[383195725,1756877529163,541.113282,0.00013699,2]
[383195727,1756877533922,-1000.0,0.00014961,2]
[383195728,1756877535598,928.36,0.00013698,2]
[383195729,1756877535988,928.36,0.00013972,2]
[383195730,1756877536359,928.36,0.00014246,2]
[383195731,1756877536731,928.36,0.0001452,2]
[383195732,1756877537050,928.36,0.00014794,2]
[383195733,1756877542094,3358.21,0.00014976,2]
[383195734,1756877542124,1641.79,0.00014976,2]
[383195735,1756877543949,-168.0,0.00014984,2]
[383195736,1756877550106,5000.0,0.00014999,2]
[383195737,1756877552467,-160.0,0.00015,2]
[383195738,1756877552500,-300.0,0.00015006,2]
[383195739,1756877552533,-297.86985904,0.00015007,2]
[383195740,1756877552565,-500.0,0.00015007,2]
[383195741,1756877552596,-501.51590951,0.00015007,2]
[383195742,1756877556506,480.0,0.00013698,2]
[383195743,1756877557324,480.0,0.00013972,2]
[383195744,1756877557717,480.0,0.00014246,2]
[383195745,1756877558112,480.0,0.0001452,2]
[383195746,1756877558838,480.0,0.00014794,2]
[383195747,1756877559250,1000.0,0.000273,120]
[383195748,1756877560720,480.0,0.00014245,2]
[383195749,1756877563099,-1670.43,0.0001506,2]
[383195750,1756877563131,-167.76,0.0001506,2]
[383195751,1756877563161,-1670.43,0.00015067,2]
[383195752,1756877563973,160.0,0.00015007,2]
[383195753,1756877564198,232.90165665,0.00015007,2]
[383195754,1756877564236,-9257.5891113,0.00015068,2]
[383195755,1756877564266,-10000.01,0.00015068,2]
[383195756,1756877564412,-10000.01,0.00015068,2]
[383195757,1756877564448,530.32150586,0.00015007,2]
[383195758,1756877564575,-9469.68849414,0.00015068,2]
[383195759,1756877565068,480.0,0.00014245,2]
[383195760,1756877565529,480.0,0.00014519,2]
[383195761,1756877565564,5000.0,0.00015015,2]
[383195762,1756877565787,527.26,0.00014793,2]
[383195763,1756877574009,-480.0,0.00013698,2]
[383195764,1756877582621,480.0,0.00013698,2]
[383195765,1756877583811,157.15,0.00012329,2]
[383195766,1756877584104,480.0,0.00013698,2]
[383195767,1756877591527,1000.0,0.0002739,120]
[383195768,1756877594008,-1440.0,0.00013832,2]
[383195769,1756877594486,785.8,0.00012329,2]
[383195770,1756877604109,-480.0,0.00013972,2]
[383195771,1756877604144,-480.0,0.00013972,2]
[383195772,1756877604177,-480.0,0.00013972,2]
[383195773,1756877609663,500.0,0.00013698,2]
[383195774,1756877610055,500.0,0.00013698,2]
[383195775,1756877610343,500.0,0.00013698,2]
[383195776,1756877610647,500.0,0.00013875,2]
[383195777,1756877610979,500.0,0.0001397,2]
[383195778,1756877611175,500.0,0.00013971,2]
[383195779,1756877611509,500.0,0.00013971,2]
[383195780,1756877611871,500.0,0.00013971,2]
[383195781,1756877612007,300.0,0.00013859,2]
[383195782,1756877613701,502.77,0.00013698,2]
[383195783,1756877613957,502.77,0.00013972,2]
[383195784,1756877622176,-300.0,0.00013999,2]
[383195785,1756877622414,-5704.27,0.00014,2]
[383195786,1756877622491,-10000.01,0.00014,2]
[383195787,1756877622654,-177.84027759,0.00014,2]
[383195788,1756877624807,480.0,0.00013698,2]
[383195789,1756877625170,480.0,0.00013972,2]
[383195790,1756877632422,480.0,0.00013698,2]
[383195791,1756877633021,480.0,0.00013972,2]
[383195792,1756877634079,-8080.01,0.00014142,2]
[383195793,1756877634139,480.0,0.00013698,2]
[383195794,1756877634204,-9520.01,0.00014142,2]
[383195795,1756877634327,-10000.01,0.00014142,2]
[383195796,1756877634442,-10000.01,0.00014142,2]
[383195797,1756877634578,-10000.01,0.00014142,2]
[383195798,1756877634717,-10000.01,0.00014142,2]
[383195799,1756877634825,480.0,0.00013972,2]
[383195800,1756877634945,-9520.01,0.00014142,2]
[383195801,1756877635064,-10000.01,0.00014142,2]
[383195802,1756877635178,-10000.01,0.00014142,2]
[383195803,1756877635322,-10000.01,0.00014142,2]
[383195804,1756877635671,6764.32944482,0.00014,2]
[383195805,1756877635696,9413.28570163,0.00014,2]
[383195806,1756877638823,1000.0,0.0002739,120]
[383195807,1756877644103,-300.0,0.00014141,2]
[383195808,1756877644374,-3235.68055518,0.00014142,2]
[383195809,1756877648487,1000.0,0.0002739,120]
[383195810,1756877669144,164.53278564,0.00013291,2]
[383195811,1756877692039,164.53278564,0.00013291,2]
[383195812,1756877714626,164.53278564,0.00013291,2]
[383195813,1756877737573,164.53278564,0.00013291,2]
[383195814,1756877739211,-164.53278564,0.00013425,2]
[383195815,1756877739243,-164.53278564,0.00013561,2]
[383195816,1756877739276,-300.0,0.00013697,2]
[383195817,1756877739308,-300.0,0.00013697,2]
[383195818,1756877739341,-300.0,0.00013697,2]
[383195819,1756877739373,-300.0,0.00013697,2]
[383195820,1756877739405,-1200.0,0.00013697,2]
[383195821,1756877739437,-164.53278564,0.00013698,2]
[383195822,1756877739470,-480.0,0.00013698,2]
[383195823,1756877739502,-480.0,0.00013698,2]
[383195824,1756877739533,-508.75954381,0.00013698,2]
[383195825,1756877739565,-128.36419854,0.00013698,2]
[383195826,1756877739939,-1018.56580146,0.00013698,2]
[383195827,1756877756337,172.155587,0.00013204,2]
[383195828,1756877756759,172.155587,0.00013204,120]
[383195829,1756877759255,-4217.70093296,0.00013425,2]
[383195830,1756877759299,-1564.60813408,0.00013561,2]
[383195831,1756877769274,-2653.09279888,0.00013425,2]
[383195832,1756877769307,-2040.73160336,0.00013561,2]
[383195833,1756877769373,-612.36119552,0.00013561,2]
[383195834,1756877789490,300.0,0.0001329,2]
[383195835,1756877811596,300.0,0.0001329,2]